[Event "Titled Tuesday Blitz June 28 Late 2022"]
[White "Novikova, Galina"]
[Black "Gubajdullin, Alexei"]
[WhiteFideId "4157095"]
[BlackFideId "4141202"]
[WhiteElo "2395"]
[BlackElo "2594"]
[Result "0-1"]
[Round "11"]
[TimeControl "180+1"]
[Date "2022.06.29"]
[WhiteClock "0:00:03"]
[BlackClock "0:00:20"]

1. e4 {[%clk 0:03:00]}  g6 {[%clk 0:02:57]} 2. d4 {[%clk 0:03:00]}  d6 {[%clk 0:02:57]} 3. Nc3 {[%clk 0:03:00]}  c6 {[%clk 0:02:57]} 4. f3 {[%clk 0:03:00]}  Qb6 {[%clk 0:02:56]} 5. Bc4 {[%clk 0:02:49]}  Bg7 {[%clk 0:02:54]} 6. Nge2 {[%clk 0:02:50]}  Nf6 {[%clk 0:02:53]} 7. Bb3 {[%clk 0:02:50]}  O-O {[%clk 0:02:52]} 8. Be3 {[%clk 0:02:51]}  e5 {[%clk 0:02:50]} 9. Qd2 {[%clk 0:02:50]}  Qc7 {[%clk 0:02:49]} 10. dxe5 {[%clk 0:02:39]}  dxe5 {[%clk 0:02:48]} 11. O-O-O {[%clk 0:02:38]}  Na6 {[%clk 0:02:39]} 12. g4 {[%clk 0:02:31]}  Be6 {[%clk 0:02:33]} 13. Bh6 {[%clk 0:02:26]}  Rfd8 {[%clk 0:02:27]} 14. Qg5 {[%clk 0:02:24]}  Nc5 {[%clk 0:02:24]} 15. Bxg7 {[%clk 0:02:23]}  Kxg7 {[%clk 0:02:24]} 16. h4 {[%clk 0:02:23]}  a5 {[%clk 0:02:13]} 17. h5 {[%clk 0:02:21]}  h6 {[%clk 0:02:12]} 18. Qe3 {[%clk 0:02:18]}  Nxb3+ {[%clk 0:02:06]} 19. cxb3 {[%clk 0:02:16]}  g5 {[%clk 0:02:06]} 20. Ng3 {[%clk 0:02:03]}  b6 {[%clk 0:01:55]} 21. Nf5+ {[%clk 0:02:02]}  Bxf5 {[%clk 0:01:54]} 22. gxf5 {[%clk 0:01:58]}  Rxd1+ {[%clk 0:01:46]} 23. Rxd1 {[%clk 0:01:57]}  Nxh5 {[%clk 0:01:38]} 24. Rh1 {[%clk 0:01:49]}  Nf4 {[%clk 0:01:38]} 25. f6+ {[%clk 0:01:43]}  Kg6 {[%clk 0:01:37]} 26. Ne2 {[%clk 0:01:27]}  Rd8 {[%clk 0:01:29]} 27. Ng3 {[%clk 0:01:22]}  h5 {[%clk 0:01:18]} 28. a3 {[%clk 0:00:34]}  Rd3 {[%clk 0:01:16]} 29. Qf2 {[%clk 0:00:27]}  Qd8 {[%clk 0:01:06]} 30. Kb1 {[%clk 0:00:21]}  Rd1+ {[%clk 0:01:04]} 31. Rxd1 {[%clk 0:00:18]}  Qxd1+ {[%clk 0:01:05]} 32. Ka2 {[%clk 0:00:19]}  Nd3 {[%clk 0:01:04]} 33. Qh2 {[%clk 0:00:15]}  Nc1+ {[%clk 0:01:02]} 34. Kb1 {[%clk 0:00:15]}  Nxb3+ {[%clk 0:00:59]} 35. Ka2 {[%clk 0:00:15]}  h4 {[%clk 0:00:53]} 36. Qh3 {[%clk 0:00:10]}  Nc1+ {[%clk 0:00:42]} 37. Kb1 {[%clk 0:00:09]}  Ne2+ {[%clk 0:00:41]} 38. Ka2 {[%clk 0:00:07]}  Nxg3 {[%clk 0:00:41]} 39. Qc8 {[%clk 0:00:08]}  Qd6 {[%clk 0:00:28]} 40. Qg8+ {[%clk 0:00:07]}  Kxf6 {[%clk 0:00:28]} 41. Qh8+ {[%clk 0:00:04]}  Ke7 {[%clk 0:00:28]} 42. Qg8 {[%clk 0:00:04]}  Qg6 {[%clk 0:00:20]} 43. Qc8 {[%clk 0:00:03]}  Qe6+ {[%clk 0:00:20]} 0-1


[Site "https://www.chess.com"]

[Event "Titled Tuesday Blitz June 28 Late 2022"]
[White "Pakleza, Zbigniew"]
[Black "Katz, Alexander"]
[WhiteFideId "1119290"]
[BlackFideId "2039796"]
[WhiteElo "2838"]
[BlackElo "2658"]
[Result "1-0"]
[Round "11"]
[TimeControl "180+1"]
[Date "2022.06.28"]
[WhiteClock "0:01:04"]
[BlackClock "0:00:47"]

1. d4 {[%clk 0:03:00]}  d5 {[%clk 0:02:56]} 2. Bf4 {[%clk 0:03:00]}  Nf6 {[%clk 0:02:55]} 3. e3 {[%clk 0:03:00]}  Bf5 {[%clk 0:02:55]} 4. c4 {[%clk 0:02:58]}  c6 {[%clk 0:02:54]} 5. Nc3 {[%clk 0:02:58]}  e6 {[%clk 0:02:54]} 6. Qb3 {[%clk 0:02:59]}  Qb6 {[%clk 0:02:54]} 7. c5 {[%clk 0:02:56]}  Qxb3 {[%clk 0:02:54]} 8. axb3 {[%clk 0:02:57]}  Nbd7 {[%clk 0:02:35]} 9. b4 {[%clk 0:02:55]}  Nh5 {[%clk 0:02:32]} 10. Be5 {[%clk 0:02:49]}  f6 {[%clk 0:02:31]} 11. Bc7 {[%clk 0:02:44]}  Rc8 {[%clk 0:02:27]} 12. Bd6 {[%clk 0:02:44]}  Bxd6 {[%clk 0:01:51]} 13. cxd6 {[%clk 0:02:45]}  g5 {[%clk 0:01:36]} 14. Rxa7 {[%clk 0:02:40]}  Rb8 {[%clk 0:01:34]} 15. b5 {[%clk 0:01:56]}  Ng7 {[%clk 0:01:23]} 16. Nf3 {[%clk 0:01:50]}  Kd8 {[%clk 0:01:22]} 17. b4 {[%clk 0:01:27]}  Ne8 {[%clk 0:01:20]} 18. bxc6 {[%clk 0:01:26]}  bxc6 {[%clk 0:01:20]} 19. b5 {[%clk 0:01:27]}  c5 {[%clk 0:01:07]} 20. Rxd7+ {[%clk 0:01:21]}  Kxd7 {[%clk 0:01:08]} 21. dxc5 {[%clk 0:01:21]}  Ra8 {[%clk 0:01:04]} 22. Nd4 {[%clk 0:01:06]}  Ra1+ {[%clk 0:00:59]} 23. Kd2 {[%clk 0:01:05]}  Bg6 {[%clk 0:00:47]} 24. b6 {[%clk 0:01:04]} 1-0


[Site "https://www.chess.com"]

[Event "Titled Tuesday Blitz June 28 Late 2022"]
[White "Preotu, Razvan"]
[Black "Terry, Renato"]
[WhiteFideId "2613280"]
[BlackFideId "3803457"]
[WhiteElo "2733"]
[BlackElo "2938"]
[Result "1/2-1/2"]
[Round "11"]
[TimeControl "180+1"]
[Date "2022.06.28"]
[WhiteClock "0:01:50"]
[BlackClock "0:02:43"]

1. e4 {[%clk 0:03:00]}  g6 {[%clk 0:02:58]} 2. d4 {[%clk 0:03:00]}  Bg7 {[%clk 0:02:56]} 3. Nc3 {[%clk 0:03:00]}  c6 {[%clk 0:02:56]} 4. Be3 {[%clk 0:03:00]}  d5 {[%clk 0:02:57]} 5. e5 {[%clk 0:02:59]}  f6 {[%clk 0:02:56]} 6. f4 {[%clk 0:02:36]}  Nh6 {[%clk 0:02:56]} 7. Nf3 {[%clk 0:02:28]}  Bg4 {[%clk 0:02:56]} 8. Be2 {[%clk 0:02:28]}  O-O {[%clk 0:02:56]} 9. O-O {[%clk 0:02:27]}  Bxf3 {[%clk 0:02:54]} 10. Bxf3 {[%clk 0:02:27]}  fxe5 {[%clk 0:02:52]} 11. fxe5 {[%clk 0:02:26]}  Nf5 {[%clk 0:02:52]} 12. Bf2 {[%clk 0:02:26]}  e6 {[%clk 0:02:52]} 13. Ne2 {[%clk 0:02:09]}  Bh6 {[%clk 0:02:49]} 14. Qd3 {[%clk 0:02:08]}  Nd7 {[%clk 0:02:47]} 15. c4 {[%clk 0:01:50]}  Qg5 {[%clk 0:02:43]} 1/2-1/2


[Site "https://www.chess.com"]

[Event "Titled Tuesday Blitz June 28 Late 2022"]
[White "Rios Escobar, Adan"]
[Black "Kim, Sergey"]
[WhiteFideId "3403645"]
[BlackFideId "13700570"]
[WhiteElo "2481"]
[BlackElo "2592"]
[Result "1-0"]
[Round "11"]
[TimeControl "180+1"]
[Date "2022.06.28"]
[WhiteClock "0:00:27"]
[BlackClock "0:00:28"]

1. d4 {[%clk 0:03:00]}  Nf6 {[%clk 0:02:57]} 2. g3 {[%clk 0:03:00]}  g6 {[%clk 0:02:58]} 3. Bg2 {[%clk 0:03:01]}  Bg7 {[%clk 0:02:58]} 4. e4 {[%clk 0:03:02]}  d6 {[%clk 0:02:58]} 5. Ne2 {[%clk 0:03:02]}  O-O {[%clk 0:02:58]} 6. O-O {[%clk 0:03:03]}  c6 {[%clk 0:02:58]} 7. a4 {[%clk 0:03:02]}  a5 {[%clk 0:02:58]} 8. Nbc3 {[%clk 0:03:03]}  Qc7 {[%clk 0:02:57]} 9. h3 {[%clk 0:03:03]}  e5 {[%clk 0:02:57]} 10. Be3 {[%clk 0:03:03]}  Re8 {[%clk 0:02:57]} 11. g4 {[%clk 0:03:03]}  Na6 {[%clk 0:02:57]} 12. Ng3 {[%clk 0:03:03]}  Nb4 {[%clk 0:02:55]} 13. f4 {[%clk 0:02:51]}  exd4 {[%clk 0:02:54]} 14. Bxd4 {[%clk 0:02:51]}  b6 {[%clk 0:02:54]} 15. Qd2 {[%clk 0:02:48]}  Ba6 {[%clk 0:02:53]} 16. Rfe1 {[%clk 0:02:48]}  Rad8 {[%clk 0:02:51]} 17. Rad1 {[%clk 0:02:47]}  d5 {[%clk 0:02:25]} 18. Qf2 {[%clk 0:01:58]}  c5 {[%clk 0:01:57]} 19. Be5 {[%clk 0:01:45]}  Qc8 {[%clk 0:01:50]} 20. exd5 {[%clk 0:01:40]}  Bb7 {[%clk 0:01:34]} 21. d6 {[%clk 0:01:36]}  Bxg2 {[%clk 0:01:32]} 22. Qxg2 {[%clk 0:01:37]}  Nd7 {[%clk 0:01:18]} 23. Bxg7 {[%clk 0:01:37]}  Kxg7 {[%clk 0:01:19]} 24. Nb5 {[%clk 0:01:38]}  Rxe1+ {[%clk 0:01:12]} 25. Rxe1 {[%clk 0:01:37]}  Re8 {[%clk 0:01:12]} 26. Re7 {[%clk 0:01:30]}  Qd8 {[%clk 0:01:04]} 27. Qe2 {[%clk 0:01:29]}  Rf8 {[%clk 0:00:55]} 28. c4 {[%clk 0:01:01]}  Nc6 {[%clk 0:00:49]} 29. Qe3 {[%clk 0:00:52]}  Nf6 {[%clk 0:00:46]} 30. g5 {[%clk 0:00:47]}  Ng8 {[%clk 0:00:46]} 31. Qc3+ {[%clk 0:00:44]}  Nf6 {[%clk 0:00:40]} 32. Qxf6+ {[%clk 0:00:43]}  Kg8 {[%clk 0:00:40]} 33. Nf1 {[%clk 0:00:28]}  Re8 {[%clk 0:00:28]} 34. Qxf7+ {[%clk 0:00:27]} 1-0


[Site "https://www.chess.com"]

[Event "Titled Tuesday Blitz June 28 Late 2022"]
[White "Rizzo, Tobias"]
[Black "Toncheva, Nadya"]
[WhiteFideId "30942691"]
[BlackFideId "2924056"]
[WhiteElo "2302"]
[BlackElo "1888"]
[Result "0-1"]
[Round "11"]
[TimeControl "180+1"]
[Date "2022.06.29"]
[WhiteClock "0:00:01"]
[BlackClock "0:00:05"]

1. d4 {[%clk 0:03:00]}  Nf6 {[%clk 0:02:58]} 2. Bg5 {[%clk 0:02:59]}  Ne4 {[%clk 0:02:58]} 3. h4 {[%clk 0:02:58]}  c5 {[%clk 0:02:56]} 4. d5 {[%clk 0:02:58]}  Qb6 {[%clk 0:02:55]} 5. Nd2 {[%clk 0:02:55]}  Nxd2 {[%clk 0:02:51]} 6. Bxd2 {[%clk 0:02:56]}  Qxb2 {[%clk 0:02:42]} 7. e4 {[%clk 0:02:55]}  d6 {[%clk 0:02:34]} 8. Bc4 {[%clk 0:02:42]}  f5 {[%clk 0:02:29]} 9. Bd3 {[%clk 0:02:29]}  fxe4 {[%clk 0:02:24]} 10. Bxe4 {[%clk 0:02:30]}  Qe5 {[%clk 0:02:24]} 11. f3 {[%clk 0:02:16]}  g6 {[%clk 0:02:01]} 12. Ne2 {[%clk 0:02:12]}  Bg7 {[%clk 0:01:59]} 13. Bc3 {[%clk 0:02:09]}  Qxc3+ {[%clk 0:01:43]} 14. Nxc3 {[%clk 0:02:10]}  Bxc3+ {[%clk 0:01:44]} 15. Ke2 {[%clk 0:02:10]}  b6 {[%clk 0:01:42]} 16. Bd3 {[%clk 0:01:52]}  Nd7 {[%clk 0:01:28]} 17. h5 {[%clk 0:01:41]}  g5 {[%clk 0:01:26]} 18. Rb1 {[%clk 0:01:35]}  Ne5 {[%clk 0:01:22]} 19. Kf1 {[%clk 0:01:26]}  O-O {[%clk 0:01:18]} 20. Kg1 {[%clk 0:01:20]}  Bd4+ {[%clk 0:01:15]} 21. Kh2 {[%clk 0:01:20]}  Rf4 {[%clk 0:01:07]} 22. Kg3 {[%clk 0:00:53]}  Bd7 {[%clk 0:00:58]} 23. Re1 {[%clk 0:00:49]}  Raf8 {[%clk 0:00:54]} 24. Re4 {[%clk 0:00:49]}  Rh4 {[%clk 0:00:40]} 25. Rxh4 {[%clk 0:00:34]}  gxh4+ {[%clk 0:00:39]} 26. Kh2 {[%clk 0:00:35]}  Bf2 {[%clk 0:00:30]} 27. Qe2 {[%clk 0:00:31]}  Bg3+ {[%clk 0:00:28]} 28. Kh1 {[%clk 0:00:32]}  Rf4 {[%clk 0:00:19]} 29. Be4 {[%clk 0:00:25]}  Kh8 {[%clk 0:00:15]} 30. Kg1 {[%clk 0:00:19]}  h3 {[%clk 0:00:14]} 31. gxh3 {[%clk 0:00:19]}  Bxh3 {[%clk 0:00:14]} 32. c3 {[%clk 0:00:14]}  Rf8 {[%clk 0:00:12]} 33. Kh1 {[%clk 0:00:08]}  Rf4 {[%clk 0:00:08]} 34. Kg1 {[%clk 0:00:07]}  Rh4 {[%clk 0:00:08]} 35. Rb2 {[%clk 0:00:03]}  Rxh5 {[%clk 0:00:07]} 36. f4 {[%clk 0:00:03]}  Bg4 {[%clk 0:00:06]} 37. Qg2 {[%clk 0:00:01]}  Bxf4 {[%clk 0:00:05]} 0-1


[Site "https://www.chess.com"]

[Event "Titled Tuesday Blitz June 28 Late 2022"]
[White "Sadhwani, Raunak"]
[Black "Andreikin, Dmitry"]
[WhiteFideId "35093487"]
[BlackFideId "4158814"]
[WhiteElo "2999"]
[BlackElo "3093"]
[Result "0-1"]
[Round "11"]
[TimeControl "180+1"]
[Date "2022.06.28"]
[WhiteClock "0:00:01"]
[BlackClock "0:00:08"]

1. e4 {[%clk 0:03:00]}  c5 {[%clk 0:03:00]} 2. Nf3 {[%clk 0:03:01]}  e6 {[%clk 0:03:00]} 3. d4 {[%clk 0:03:01]}  cxd4 {[%clk 0:03:01]} 4. Nxd4 {[%clk 0:03:02]}  Nc6 {[%clk 0:03:01]} 5. Nc3 {[%clk 0:03:02]}  Qc7 {[%clk 0:03:02]} 6. g3 {[%clk 0:02:54]}  a6 {[%clk 0:03:01]} 7. Bg2 {[%clk 0:02:53]}  Nf6 {[%clk 0:03:02]} 8. O-O {[%clk 0:02:52]}  Nxd4 {[%clk 0:03:02]} 9. Qxd4 {[%clk 0:02:53]}  Bc5 {[%clk 0:03:02]} 10. Bf4 {[%clk 0:02:51]}  d6 {[%clk 0:03:02]} 11. Qd2 {[%clk 0:02:51]}  h6 {[%clk 0:03:02]} 12. a3 {[%clk 0:02:41]}  e5 {[%clk 0:02:59]} 13. Be3 {[%clk 0:02:42]}  Bxe3 {[%clk 0:02:56]} 14. Qxe3 {[%clk 0:02:43]}  Be6 {[%clk 0:02:54]} 15. Rad1 {[%clk 0:02:41]}  O-O {[%clk 0:02:51]} 16. Rd2 {[%clk 0:02:40]}  b5 {[%clk 0:02:45]} 17. Rfd1 {[%clk 0:02:34]}  Rfd8 {[%clk 0:02:45]} 18. h3 {[%clk 0:02:35]}  Rab8 {[%clk 0:02:44]} 19. f4 {[%clk 0:02:26]}  a5 {[%clk 0:02:26]} 20. f5 {[%clk 0:01:52]}  Bc4 {[%clk 0:02:24]} 21. g4 {[%clk 0:01:36]}  b4 {[%clk 0:02:22]} 22. axb4 {[%clk 0:01:37]}  axb4 {[%clk 0:02:22]} 23. Ne2 {[%clk 0:01:37]}  Bxe2 {[%clk 0:02:18]} 24. Qxe2 {[%clk 0:01:38]}  Ra8 {[%clk 0:01:51]} 25. Kh2 {[%clk 0:01:38]}  Ra2 {[%clk 0:01:48]} 26. c4 {[%clk 0:01:17]}  bxc3 {[%clk 0:01:39]} 27. bxc3 {[%clk 0:01:18]}  Ra3 {[%clk 0:01:34]} 28. c4 {[%clk 0:01:18]}  Rc3 {[%clk 0:01:31]} 29. Rc2 {[%clk 0:01:08]}  Rxc2 {[%clk 0:01:31]} 30. Qxc2 {[%clk 0:01:09]}  Qc5 {[%clk 0:01:31]} 31. Qd3 {[%clk 0:01:05]}  Qf2 {[%clk 0:01:19]} 32. Qd2 {[%clk 0:01:01]}  Qc5 {[%clk 0:01:11]} 33. Qd3 {[%clk 0:00:56]}  Kh7 {[%clk 0:01:06]} 34. Rd2 {[%clk 0:00:54]}  Qb4 {[%clk 0:01:00]} 35. Rd1 {[%clk 0:00:52]}  Qb6 {[%clk 0:00:57]} 36. Rd2 {[%clk 0:00:50]}  Qc5 {[%clk 0:00:54]} 37. Rd1 {[%clk 0:00:50]}  Rd7 {[%clk 0:00:54]} 38. Rd2 {[%clk 0:00:50]}  Qb4 {[%clk 0:00:51]} 39. Rd1 {[%clk 0:00:50]}  Ne8 {[%clk 0:00:43]} 40. Rb1 {[%clk 0:00:44]}  Qc5 {[%clk 0:00:41]} 41. Rb5 {[%clk 0:00:39]}  Qf2 {[%clk 0:00:38]} 42. c5 {[%clk 0:00:26]}  Rc7 {[%clk 0:00:25]} 43. cxd6 {[%clk 0:00:20]}  Nxd6 {[%clk 0:00:25]} 44. Rxe5 {[%clk 0:00:18]}  Rc1 {[%clk 0:00:19]} 45. Rd5 {[%clk 0:00:11]}  Qg1+ {[%clk 0:00:17]} 46. Kg3 {[%clk 0:00:12]}  Qe1+ {[%clk 0:00:17]} 47. Kh2 {[%clk 0:00:11]}  Nc4 {[%clk 0:00:14]} 48. e5 {[%clk 0:00:06]}  Rc3 {[%clk 0:00:09]} 49. Qd1 {[%clk 0:00:03]}  Qg3+ {[%clk 0:00:09]} 50. Kh1 {[%clk 0:00:03]}  Ne3 {[%clk 0:00:09]} 51. Qg1 {[%clk 0:00:01]}  Rc1 {[%clk 0:00:08]} 0-1


[Site "https://www.chess.com"]

[Event "Titled Tuesday Blitz June 28 Late 2022"]
[White "Salem, A.R. Saleh"]
[Black "Bortnyk, Olexandr"]
[WhiteFideId "9301348"]
[BlackFideId "14120828"]
[WhiteElo "2968"]
[BlackElo "3045"]
[Result "1-0"]
[Round "11"]
[TimeControl "180+1"]
[Date "2022.06.28"]
[WhiteClock "0:01:20"]
[BlackClock "0:00:03"]

1. d4 {[%clk 0:03:00]}  d6 {[%clk 0:03:00]} 2. e4 {[%clk 0:03:00]}  Nf6 {[%clk 0:03:00]} 3. f3 {[%clk 0:03:01]}  e5 {[%clk 0:02:57]} 4. d5 {[%clk 0:03:01]}  Be7 {[%clk 0:02:53]} 5. Be3 {[%clk 0:03:02]}  O-O {[%clk 0:02:53]} 6. Qd2 {[%clk 0:03:02]}  c6 {[%clk 0:02:52]} 7. c4 {[%clk 0:03:00]}  a5 {[%clk 0:02:51]} 8. Ne2 {[%clk 0:03:00]}  a4 {[%clk 0:02:51]} 9. Nec3 {[%clk 0:02:58]}  Nh5 {[%clk 0:02:44]} 10. Na3 {[%clk 0:02:54]}  Bd7 {[%clk 0:02:01]} 11. O-O-O {[%clk 0:02:50]}  Na6 {[%clk 0:01:58]} 12. Kb1 {[%clk 0:02:50]}  Nb4 {[%clk 0:01:51]} 13. g3 {[%clk 0:02:50]}  f5 {[%clk 0:01:50]} 14. Be2 {[%clk 0:02:42]}  f4 {[%clk 0:01:46]} 15. Bf2 {[%clk 0:02:42]}  c5 {[%clk 0:01:44]} 16. g4 {[%clk 0:02:36]}  Nf6 {[%clk 0:01:44]} 17. h4 {[%clk 0:02:34]}  Ne8 {[%clk 0:01:36]} 18. Nab5 {[%clk 0:02:31]}  Nc7 {[%clk 0:01:25]} 19. a3 {[%clk 0:02:31]}  Nba6 {[%clk 0:01:25]} 20. Nxa4 {[%clk 0:02:28]}  Nxb5 {[%clk 0:01:17]} 21. cxb5 {[%clk 0:02:29]}  Nb8 {[%clk 0:01:16]} 22. Nxc5 {[%clk 0:02:25]}  dxc5 {[%clk 0:01:07]} 23. d6 {[%clk 0:02:26]}  Bf6 {[%clk 0:01:08]} 24. Qd5+ {[%clk 0:02:20]}  Kh8 {[%clk 0:01:05]} 25. g5 {[%clk 0:02:20]}  Be8 {[%clk 0:00:45]} 26. gxf6 {[%clk 0:02:17]}  gxf6 {[%clk 0:00:46]} 27. Qxc5 {[%clk 0:01:55]}  Nd7 {[%clk 0:00:41]} 28. Qc7 {[%clk 0:01:55]}  f5 {[%clk 0:00:37]} 29. Qxd8 {[%clk 0:01:50]}  Rxd8 {[%clk 0:00:37]} 30. exf5 {[%clk 0:01:47]}  Rxf5 {[%clk 0:00:38]} 31. Bd3 {[%clk 0:01:46]}  Rf6 {[%clk 0:00:37]} 32. Be4 {[%clk 0:01:46]}  b6 {[%clk 0:00:35]} 33. h5 {[%clk 0:01:46]}  Rh6 {[%clk 0:00:33]} 34. Bh4 {[%clk 0:01:40]}  Rc8 {[%clk 0:00:17]} 35. Bg5 {[%clk 0:01:41]}  Rxh5 {[%clk 0:00:10]} 36. Rxh5 {[%clk 0:01:41]}  Bxh5 {[%clk 0:00:11]} 37. Rh1 {[%clk 0:01:42]}  Bf7 {[%clk 0:00:12]} 38. Bf5 {[%clk 0:01:29]}  Rc5 {[%clk 0:00:03]} 39. Bxd7 {[%clk 0:01:23]}  e4 {[%clk 0:00:04]} 40. Bf6+ {[%clk 0:01:22]}  Kg8 {[%clk 0:00:04]} 41. Rg1+ {[%clk 0:01:21]}  Bg6 {[%clk 0:00:02]} 42. Be6+ {[%clk 0:01:22]}  Kf8 {[%clk 0:00:03]} 43. d7 {[%clk 0:01:23]}  exf3+ {[%clk 0:00:03]} 44. Rxg6 {[%clk 0:01:20]} 1-0


[Site "https://www.chess.com"]

[Event "Titled Tuesday Blitz June 28 Late 2022"]
[White "Sibilio, Mario"]
[Black "Ricaurte Lopez, Juan Carlos"]
[WhiteFideId "800422"]
[BlackFideId "3600327"]
[WhiteElo "2296"]
[BlackElo "2209"]
[Result "1/2-1/2"]
[Round "11"]
[TimeControl "180+1"]
[Date "2022.06.29"]
[WhiteClock "0:01:28"]
[BlackClock "0:01:18"]

1. c4 {[%clk 0:03:00]}  e5 {[%clk 0:02:58]} 2. Nc3 {[%clk 0:03:00]}  Nf6 {[%clk 0:02:58]} 3. Nf3 {[%clk 0:02:59]}  Nc6 {[%clk 0:02:57]} 4. e4 {[%clk 0:02:59]}  Bc5 {[%clk 0:02:54]} 5. h3 {[%clk 0:02:58]}  d6 {[%clk 0:02:53]} 6. d3 {[%clk 0:02:55]}  Nd4 {[%clk 0:02:51]} 7. Be3 {[%clk 0:02:48]}  a5 {[%clk 0:02:47]} 8. g3 {[%clk 0:02:47]}  c6 {[%clk 0:02:44]} 9. Bg2 {[%clk 0:02:43]}  O-O {[%clk 0:02:39]} 10. O-O {[%clk 0:02:40]}  Nxf3+ {[%clk 0:02:36]} 11. Qxf3 {[%clk 0:02:37]}  Nd7 {[%clk 0:02:26]} 12. Rad1 {[%clk 0:02:21]}  a4 {[%clk 0:02:22]} 13. d4 {[%clk 0:02:03]}  exd4 {[%clk 0:02:16]} 14. Bxd4 {[%clk 0:02:03]}  Qb6 {[%clk 0:02:14]} 15. Bxc5 {[%clk 0:01:58]}  Qxc5 {[%clk 0:02:11]} 16. b3 {[%clk 0:01:49]}  axb3 {[%clk 0:02:07]} 17. axb3 {[%clk 0:01:49]}  Ra3 {[%clk 0:02:03]} 18. Nb1 {[%clk 0:01:48]}  Ra2 {[%clk 0:02:01]} 19. Qd3 {[%clk 0:01:45]}  Qb4 {[%clk 0:01:47]} 20. Nd2 {[%clk 0:01:32]}  Ne5 {[%clk 0:01:23]} 21. Qe3 {[%clk 0:01:28]}  Rc2 {[%clk 0:01:18]} 1/2-1/2


[Site "https://www.chess.com"]

[Event "Titled Tuesday Blitz June 28 Late 2022"]
[White "Silva, Miguel Antonio Neto"]
[Black "Capp, Stephen"]
[WhiteFideId "1911929"]
[BlackFideId "2027089"]
[WhiteElo "2204"]
[BlackElo "2138"]
[Result "0-1"]
[Round "11"]
[TimeControl "180+1"]
[Date "2022.06.29"]
[WhiteClock "0:00:03"]
[BlackClock "0:00:15"]

1. e4 {[%clk 0:02:53]}  c6 {[%clk 0:02:59]} 2. d4 {[%clk 0:02:40]}  d5 {[%clk 0:02:58]} 3. e5 {[%clk 0:02:40]}  c5 {[%clk 0:02:56]} 4. Nf3 {[%clk 0:02:30]}  Bg4 {[%clk 0:02:52]} 5. c3 {[%clk 0:02:22]}  cxd4 {[%clk 0:02:50]} 6. cxd4 {[%clk 0:02:17]}  Nc6 {[%clk 0:02:50]} 7. Nc3 {[%clk 0:02:16]}  e6 {[%clk 0:02:50]} 8. Be2 {[%clk 0:02:14]}  Bxf3 {[%clk 0:02:48]} 9. Bxf3 {[%clk 0:02:11]}  Nge7 {[%clk 0:02:46]} 10. Be3 {[%clk 0:02:08]}  Nf5 {[%clk 0:02:45]} 11. O-O {[%clk 0:02:05]}  Be7 {[%clk 0:02:45]} 12. Qa4 {[%clk 0:02:00]}  O-O {[%clk 0:02:42]} 13. Rfd1 {[%clk 0:01:59]}  Nxe3 {[%clk 0:02:36]} 14. fxe3 {[%clk 0:01:59]}  Bg5 {[%clk 0:02:36]} 15. Re1 {[%clk 0:01:50]}  a6 {[%clk 0:02:29]} 16. Rad1 {[%clk 0:01:45]}  b5 {[%clk 0:02:28]} 17. Qc2 {[%clk 0:01:44]}  Rc8 {[%clk 0:02:25]} 18. Qf2 {[%clk 0:01:43]}  Na5 {[%clk 0:02:20]} 19. e4 {[%clk 0:01:20]}  dxe4 {[%clk 0:02:12]} 20. Nxe4 {[%clk 0:01:18]}  Bh6 {[%clk 0:02:05]} 21. Nd6 {[%clk 0:01:03]}  Rc7 {[%clk 0:01:58]} 22. b3 {[%clk 0:01:01]}  Nc6 {[%clk 0:01:52]} 23. g3 {[%clk 0:00:50]}  Ne7 {[%clk 0:01:50]} 24. Be4 {[%clk 0:00:46]}  g6 {[%clk 0:01:46]} 25. Kg2 {[%clk 0:00:42]}  Bg7 {[%clk 0:01:40]} 26. Rc1 {[%clk 0:00:35]}  Rxc1 {[%clk 0:01:29]} 27. Rxc1 {[%clk 0:00:36]}  f6 {[%clk 0:01:30]} 28. Nb7 {[%clk 0:00:26]}  Qb8 {[%clk 0:01:22]} 29. exf6 {[%clk 0:00:25]}  Bxf6 {[%clk 0:01:18]} 30. Qe2 {[%clk 0:00:23]}  Bxd4 {[%clk 0:01:15]} 31. Bf3 {[%clk 0:00:18]}  e5 {[%clk 0:00:59]} 32. a4 {[%clk 0:00:18]}  Nf5 {[%clk 0:00:56]} 33. axb5 {[%clk 0:00:16]}  Ne3+ {[%clk 0:00:56]} 34. Kh1 {[%clk 0:00:16]}  axb5 {[%clk 0:00:55]} 35. Be4 {[%clk 0:00:16]}  Qe8 {[%clk 0:00:40]} 36. Nd6 {[%clk 0:00:14]}  Qe6 {[%clk 0:00:36]} 37. Nxb5 {[%clk 0:00:13]}  Qxb3 {[%clk 0:00:28]} 38. Nc7 {[%clk 0:00:13]}  Qb2 {[%clk 0:00:19]} 39. Qxb2 {[%clk 0:00:07]}  Bxb2 {[%clk 0:00:19]} 40. Rb1 {[%clk 0:00:06]}  Bd4 {[%clk 0:00:17]} 41. Ne6 {[%clk 0:00:06]}  Re8 {[%clk 0:00:15]} 42. Nc7 {[%clk 0:00:06]}  Rf8 {[%clk 0:00:15]} 43. h3 {[%clk 0:00:04]}  Rf1+ {[%clk 0:00:14]} 44. Rxf1 {[%clk 0:00:04]}  Nxf1 {[%clk 0:00:15]} 45. Ne6 {[%clk 0:00:03]}  Nxg3+ {[%clk 0:00:15]} 46. Kg2 {[%clk 0:00:03]}  Nxe4 {[%clk 0:00:15]} 47. Kf3 {[%clk 0:00:04]}  Nd6 {[%clk 0:00:15]} 48. Ng5 {[%clk 0:00:03]} 0-1


[Site "https://www.chess.com"]